Cogmind - Beta 15 @@@ ROGUE MODE // 2025.05.19 @ 23:59:37 Player: Epsilon 11 Result: Destroyed by Autobeam Turret with Autobeam Performance ------------- Evolutions (0) 0 Regions Visited (2) 400 Robots Destroyed (31) 155 Value Destroyed (484) 484 Prototype IDs (2) 40 Alien Tech Used (0) 0 Bonus (0) 0 TOTAL SCORE: 1079 Bonus ------- None Cogmind --------- Core Integrity 0/250 Matter 192/300 Energy 200/200 System Corruption 0% Temperature Cool (12) Movement Rolling (110) Location -10/Subcaves Parts ------- > --- POWER (1) -------- Subdweller Power Source > --- PROPULSION (2) --- Subdweller Monowheel Subdweller Monowheel > --- UTILITY (2) ------ (None) > --- WEAPON (2) ------- Subdweller Machine Gun Grenade Launcher > --- INVENTORY (5) ---- Subdweller Power Source Terrain Scanner Makeshift Light Armor Plating Datajack Peak State ------------ > --- POWER ------------ Subdweller Power Source > --- PROPULSION ------- Subdweller Monowheel Subdweller Monowheel > --- UTILITY ---------- Large Storage Unit Makeshift Light Armor Plating > --- WEAPON ----------- Subdweller Machine Gun Grenade Launcher > --- INVENTORY -------- Subdweller Power Source Subdweller Optics Terrain Scanner Scrap Shield Datajack [Rating: 15] Favorites ----------- Power Ion Engine Engine Ion Engine Propulsion Wheel Wheel Wheel Utility Large Storage Unit Device Subdweller Optics Storage Large Storage Unit Protection Scrap Shield Weapon Spread Laser Energy Gun Spread Laser Ballistic Gun Heavy Assault Rifle Ballistic Cannon Light Cannon Launcher Grenade Launcher Build | -11 -10 -10 ------- Run | Yrd Mat Sub Slots Evolved . | . . . Power . | . . . Propulsion . | . . . Utility . | . . . Weapon . | . . . Parts Attached 24 | 6 7 11 Power 2 | 1 . 1 Engine 2 | 1 . 1 Core . | . . . Reactor . | . . . Propulsion 8 | 2 3 3 Treads . | . . . Leg . | . . . Wheel 8 | 2 3 3 Hover . | . . . Flight . | . . . Utility 5 | 1 1 3 Device 1 | . . 1 Storage 2 | 1 1 . Processor . | . . . Hackware . | . . . Protection 2 | . . 2 Artifact . | . . . Weapon 9 | 2 3 4 Energy Gun 3 | 1 1 1 Energy Cannon . | . . . Ballistic Gun 3 | 1 1 1 Ballistic Cannon 2 | . . 2 Launcher 1 | . 1 . Special Weapon . | . . . Impact Weapon . | . . . Slashing Weapon . | . . . Piercing Weapon . | . . . Special Melee Weapon . | . . . Unidentified Prototypes . | . . . Parts Lost 6 | . . 6 Power . | . . . Propulsion 2 | . . 2 Utility 1 | . . 1 Weapon 3 | . . 3 Highest Loss Streak 4 | . . 4 To Critical Strikes . | . . . Average Backups 9 | . 6 11 Power . | . . . Propulsion 2 | . . 3 Utility 2 | . 1 3 Weapon 3 | . 3 3 Tool/Special . | . . . Unused Backups 8 | . . 8 Power 1 | . . 1 Propulsion 1 | . . 1 Utility 4 | . . 4 Weapon 1 | . . 1 Tool/Special 1 | . . 1 Average Slot Usage (%) 86 | . 85 87 Engine 14 | . 14 14 Wheel 27 | . 28 27 Device 1 | . . 2 Storage 12 | . 14 10 Protection 2 | . . 3 Energy Gun 16 | . 10 18 Ballistic Gun 7 | . 9 7 Launcher 2 | . 7 . Peak Build Rating 15 | 6 8 15 Average Rating 9 | 4 7 10 On Entrance 4 | . 6 8 Naked Turns . | . . . Heaviest Build 34 | 12 31 34 Greatest Support 40 | 26 26 40 Greatest Overweight (x) 1 | . 1 1 Average Overweight (x) . | . . . Largest Inventory Capacity 15 | 8 15 15 Average Capacity 13 | 7 14 12 Most Carried 15 | . 15 15 Average Carried 9 | . 6 11 Final Capacity 15 | 8 15 5 Final Carried 15 | . 15 4 Class Distribution -------------------- 70% | Mutant 16% | Scavenger-Mutant 13% | Subdweller-Mutant Dominant Class ---------------- Mutant | -10/Materials Mutant | -10/Subcaves Resources | -11 -10 -10 ----------- Run | Yrd Mat Sub Matter Collected 662 | 236 76 350 Remotely . | . . . Salvage Created 509 | . 119 390 Parts 66 | . 27 39 Haulers Intercepted 1 | . 1 . Recyclers Shooed . | . . . Parts Field Recycled . | . . . Retrieved Matter . | . . . Parts Self-Destructed 14 | . . 14 Prevented . | . . . Kills | -11 -10 -10 ------- Run | Yrd Mat Sub Combat Hostiles Destroyed 24 | . 11 13 Guns 11 | . . 11 AOE 13 | . 11 2 Classes Destroyed 7 | . 4 3 Builder 3 | . 3 . Hauler 1 | . 1 . Watcher 3 | . 3 . Swarmer 18 | . 11 7 Grunt 1 | . . 1 Sentry 1 | . . 1 Subdweller 4 | . . 4 Best Kill Streak 8 | . 8 4 Combat Bots Only 4 | . 3 4 Max Kills in Single Turn 3 | . 3 2 Gunslinging 1 | . . 1 Exploded 3 | . 3 2 Melee . | . . . Uniques/NPCs Destroyed . | . . . Combat | -11 -10 -10 -------- Run | Yrd Mat Sub Hostile Shots Fired 124 | . 24 100 Missed 44 | . 7 37 Hits 80 | . 17 63 Projectile 80 | . 17 63 Critical Strikes 1 | . 1 . Damage Taken 902 | . 159 743 Core 252 | . 42 210 Absorbed by Shields . | . . . Core Remaining (%) 100 | 100 . . Volleys Fired 81 | . 14 67 Largest 2 | . 2 2 Hottest 125 | . 88 125 Shots Fired 116 | . 18 98 Gun 91 | . 8 83 Cannon 9 | . . 9 Launcher 16 | . 10 6 Special . | . . . Kinetic 42 | . 4 38 Thermal 58 | . 4 54 Explosive 16 | . 10 6 Electromagnetic . | . . . Robot Hit Streak 17 | . 6 17 Robot Miss Streak 8 | . 4 8 Penetration Max . | . . . Secondary Targets 1 | . . 1 Max Gunslinging Chain 1 | . . 1 Shots Hit Robots 64 | . 11 53 Core Hits 71 | . 24 47 Critical Kills . | . . . Critical Parts Destroyed 1 | . . 1 Critical Strikes 1 | . . 1 Destroy 1 | . . 1 Melee Attacks . | . . . Impact . | . . . Slashing . | . . . Piercing . | . . . Sneak Attacks . | . . . Combat Hostiles . | . . . Follow-up Attacks . | . . . Damage Inflicted 1966 | . 894 1072 Guns 830 | . 78 752 Cannons 119 | . . 119 Explosions 1017 | . 816 201 Melee . | . . . Ramming . | . . . Kinetic 482 | . 48 434 Thermal 467 | . 30 437 Explosive 1017 | . 816 201 Electromagnetic . | . . . Impact . | . . . Slashing . | . . . Piercing . | . . . Highest Corruption . | . . . Average Corruption . | . . . Corruption Purged . | . . . Corruption Blocked . | . . . Overload Shots . | . . . Overflow Damage 88 | . 88 . Projectiles . | . . . Explosions 88 | . 88 . Melee . | . . . Knockbacks 1 | . . 1 Impact . | . . . Kinetic 1 | . . 1 Secondary . | . . . Self-Inflicted Damage 20 | . 20 . Shots 2 | . 2 . Rammed . | . . . Targets Rammed . | . . . Kicked . | . . . Crushed . | . . . Highest Temperature 54 | . 54 9 Average Temperature 10 | . 22 4 Received Heat Transfer 282 | . . 282 Siege Activations . | . . . Martial Activations . | . . . Shielding Activations . | . . . Robots Disrupted . | . . . Combat Hostiles . | . . . Robots Corrupted . | . . . Combat Hostiles . | . . . Parts Fried . | . . . Impact Corruptions . | . . . Robots Melted . | . . . Combat Hostiles . | . . . Parts Melted . | . . . Heat Transferred 555 | . 35 520 Parts Sabotaged . | . . . Parts Stolen . | . . . Parts Stripped . | . . . Power Chain Reactions . | . . . Alert | -11 -10 -10 ------- Run | Yrd Mat Sub Maximum Alert Level . | . . . Low Security (%) 100 | 100 100 . Level 1 . | . . . Level 2 . | . . . Level 3 . | . . . Level 4 . | . . . Level 5 . | . . . High Security . | . . . Max Security . | . . . Peak Influence 155 | . 155 . Initial . | . . . Average 51 | . 54 . Influence Increases 612 | . 362 250 Destroy 0b10 Robot/C 400 | . 220 180 Destroy 0b10 Robot/NC 35 | . 35 . Destroy Leader 48 | . 38 10 Successful Hack 33 | . 33 . Destroy Structure 36 | . 36 . Lose Combat Pursuer 60 | . . 60 Influence Decreases 612 | . 362 250 Time Decay 490 | . 266 224 Lost Part 26 | . . 26 Purge Threat 96 | . 96 . Squads Dispatched . | . . . Investigation . | . . . Extermination . | . . . Reinforcement . | . . . Assault . | . . . Garrison . | . . . Intercept . | . . . Searches Triggered . | . . . Construction Impeded . | . . . Haulers Reinforced . | . . . Active Scanning Responses . | . . . Cargo Convoy Interrupts . | . . . Stealth | -11 -10 -10 --------- Run | Yrd Mat Sub Distress Signals 1 | . 1 . Communications Jammed . | . . . Distress Signals . | . . . Times Spotted 33 | . 16 17 Peak Tracking Total 6 | . 4 6 Tactical Retreats 1 | . . 1 Traps | -11 -10 -10 ------- Run | Yrd Mat Sub Traps Triggered . | . . . Indirectly . | . . . Trap Hack Attempts . | . . . Triggered . | . . . Disarmed . | . . . Reprogrammed . | . . . Reused . | . . . Traps Extracted . | . . . Installed . | . . . Triggered . | . . . Machines | -11 -10 -10 ---------- Run | Yrd Mat Sub Machines Disabled 4 | . . 4 Max in Single Turn 2 | . . 2 Machines Repaired . | . . . Machines Dismantled . | . . . Machines Sabotaged . | . . . Overloaded Fab Kills . | . . . Hacking | -11 -10 -10 --------- Run | Yrd Mat Sub Machines Accessed 9 | . 8 1 Terminals 7 | . 7 . Fabricators . | . . . Repair Stations . | . . . Recycling Units 1 | . 1 . Scanalyzers . | . . . Garrison Access . | . . . Total Hacks 43 | . 38 5 Successful 25 | . 20 5 Failed 17 | . 17 . Catastrophic 1 | . 1 . Database Lockouts 1 | . 1 . Manual 20 | . 20 . Terminals 32 | . 32 . Fabricators . | . . . Repair Stations . | . . . Recycling Units 6 | . 6 . Scanalyzers . | . . . Garrison Access . | . . . Terminal Hacks 13 | . 8 5 Record 5 | . . 5 Robot Analysis 1 | . 1 . Prototype ID Bank 1 | . 1 . Branch Access Points 1 | . 1 . Terminal Index 1 | . 1 . Unreport Threat 1 | . 1 . Locate Traps 1 | . 1 . Hauler Manifests 1 | . 1 . Registered Components 1 | . 1 . Fabricator Hacks . | . . . Repair Station Hacks . | . . . Recycling Unit Hacks 2 | . 2 . Report Inventory 1 | . 1 . Retrieve Components 1 | . 1 . Scanalyzer . | . . . Garrison Access Hacks . | . . . Unauthorized Hacks 10 | . 10 . Terminals 10 | . 10 . Botnet 4 | . 4 . Operators 1 | . 1 . Skim 5 | . 5 . Fabricators . | . . . Repair Stations . | . . . Recycling Units . | . . . Scanalyzers . | . . . Garrison Access . | . . . Data Cores Recovered . | . . . Used . | . . . Hacking Detections 8 | . 8 . Full Trace Events 2 | . 2 . Feedback Events . | . . . Feedback Blocked . | . . . Robot Schematics Acquired . | . . . Robots Built . | . . . Authchips . | . . . Time . | . . . Total Robot Build Rating . | . . . Part Schematics Acquired . | . . . Parts Built . | . . . Authchips . | . . . Time . | . . . Total Part Build Rating . | . . . Parts Repaired . | . . . Time . | . . . Parts Recycled . | . . . Recycled Matter . | . . . Retrieved Matter . | . . . Retrieved Components 2 | . 2 . Parts Scanalyzed . | . . . Part Schematics Acquired . | . . . Parts Damaged . | . . . Bothacking | -11 -10 -10 ------------ Run | Yrd Mat Sub Used RIF Installer . | . . . Robots Hacked . | . . . Non-combat . | . . . Combat . | . . . Robot Hacks Applied . | . . . Relay Couplers Released . | . . . Fabnet Peak Effective % . | . . . Robots Rewired . | . . . Allies Hacked . | . . . Hacks Repelled . | . . . Allies | -11 -10 -10 -------- Run | Yrd Mat Sub Total Allies . | . . . Largest Group . | . . . Highest-Rated Group . | . . . Highest-Rated Ally . | . . . Total Orders . | . . . Ally Attacks . | . . . Total Damage . | . . . Kills . | . . . Allies Corrupted . | . . . Allies Melted . | . . . Intel | -11 -10 -10 ------- Run | Yrd Mat Sub Active Infowar (turns) 44 | . . 44 Optics 44 | . . 44 Robot Analysis Total 1 | . 1 . Derelict Logs Recovered 1 | . . 1 Drone Launches . | . . . Drone Recoveries . | . . . Exploration | -11 -10 -10 ------------- Run | Yrd Mat Sub Turns Passed 2414 | 43 796 1575 Spaces Moved 1971 | 39 522 1410 Core 3 | 3 . . Treads . | . . . Legs . | . . . Wheels 1968 | 36 522 1410 Hover . | . . . Flight . | . . . Fastest Speed 50 | 50 80 80 Average Speed 94 | 87 92 96 Slowest Speed 110 | 100 95 110 Overloaded Moves . | . . . Propulsion Burnouts . | . . . Robots Hopped . | . . . Potential Cave-ins . | . . . Cave-ins Triggered . | . . . Exploration Rate (%) 55 | 3 86 77 Regions Visited 2 Branch Regions 1 Pre-discovered Areas 4 | . 2 2 Known Exits Taken 1 | . 1 . Unknown Exits Taken 1 | 1 . . Scrap Searched 3 | . . 3 Spaces Dug . | . . . Terrain Destroyed 44 | . 38 6 Melee . | . . . Projectile . | . . . AOE 44 | . 38 6 Terrain Rammed . | . . . Walls Destroyed . | . . . Machines Disabled . | . . . Actions | -11 -10 -10 --------- Run | Yrd Mat Sub Total 2390 | 44 813 1533 Wait 268 | . 255 13 Move 1969 | 38 521 1410 Hop . | . . . Pick Up 24 | . 12 12 Fast Attach 13 | 6 1 6 Attach 6 | . 1 5 Detach 1 | . 1 . Swap 13 | . 7 6 Drop 15 | . 1 14 Fire 81 | . 14 67 Melee . | . . . Ram . | . . . Kick . | . . . Crush . | . . . Escape Stasis . | . . . Rewire . | . . . Trap . | . . . Miscellaneous . | . . . Route ------- -11/Scrapyard -10/Materials (discovered 5 exits: *Mat x3 / *Min / *Sub) -10/Subcaves (discovered 3 exits: *Mat x2 / [*Rec]) History --------- Turn | Location | Event 14 | -11/Scrapyard | Discovered new exit (range 16) 44 | -11/Scrapyard | Entered Materials 102 | -10/Materials | Discovered new exit (range 13) 131 | -10/Materials | Discovered new exit (range 12) 214 | -10/Materials | Central database locked down 214 | -10/Materials | Identified exit to Mines 220 | -10/Materials | Discovered new exit (range 7) 222 | -10/Materials | Identified exit to Materials 303 | -10/Materials | Build established: Mutant 307 | -10/Materials | Learned 4 Recycling zone layouts 353 | -10/Materials | Learned location of Subcaves (-10) 381 | -10/Materials | Identified exit to Subcaves 417 | -10/Materials | Learned Storage stockpile data 840 | -10/Materials | Entered Subcaves 841 | -10/Subcaves | Identified exit to Materials 889 | -10/Subcaves | Discovered new exit (range 14) 1274 | -10/Subcaves | A swath of the cavern ceiling suddenly collapsed 1366 | -10/Subcaves | Ambushed by Subdwellers from Twisted Machinery 1372 | -10/Subcaves | Core integrity fell below 50% 1410 | -10/Subcaves | Visited Clippyterm 1412 | -10/Subcaves | Learned Factory stockpile data 1412 | -10/Subcaves | Learned location of Deep Caves (-6) 1522 | -10/Subcaves | Shifting Twisted Machinery released Sub. Power Source 1523 | -10/Subcaves | Shifting Twisted Machinery released Spk. Treads 1524 | -10/Subcaves | Learned location of Zion (-6) 2125 | -10/Subcaves | A swath of the cavern ceiling suddenly collapsed 2217 | -10/Subcaves | Build established: Subdweller-Mutant 2252 | -10/Subcaves | Disturbed a concealed Subdweller 2273 | -10/Subcaves | Core integrity fell below 20% 2305 | -10/Subcaves | Lost 4 parts (2n2w) 2415 | -10/Subcaves | Destroyed by Autobeam Turret with Autobeam Last Messages --------------- 02257_ FU-YYV(R) affixes Scrap Shield Fragment to Scrap Shield. 02258_ Wheel destroyed. 02263_ FU-YYV(R) affixes Scrap Shield Fragment to Scrap Shield. 02263_ FU-YYV(R) knocked back. 02265_ Subatomizers dissect the Wheel. 02274_ Battle Cannon destroyed. 02275_ Subatomizers dissect the Wheel. 02275_ FU-YYV(R) destroyed. 02279_ Acquired 1 matter. 02284_ Acquired Mak. Light Armor Plating. 02285_ Acquired 67 matter. 02290_ Subatomizers dissect the Wheel. 02386_ Dropped Sub. Optics. 02387_ Dropped Lrg. Storage Unit. 02388_ Dropped Mak. Light Armor Plating. 02390_ Acquired Mak. Light Armor Plating. 02401_ Machine disabled. 02413_ Autobeam Turret suffers critical hit (Destroy). 02413_ Destroyed Autobeam. 02413_ Scrap Shield destroyed. Map ----- +----------------------------------------------------+ | ????#####????????## #???## ##??????????????# | | ???## ##???????# #?### #??????????????# | | ???# #???????# #### #??????????????# | | ??## #?####?## ## #??????????????? | | ### #### #?# ##??????????????? | | ## #?## ##???????????????? | | ### # #??## ####????????????????? | | ### ## ##??## ####????????????????# | | #?# ### #?##### ##???????????????# | | #?# ### ##### #???????????????# | | % ## # ### #???????????????# | | ## ## ## #???????????????? | | ### # #???????????????# | | ###?# ## #???????????????# | | ????## #### #???????????????# | | ?????# #???# #???????????????# | | ?????## ### #????# #??????????????# | | #?????# #?# ###????? ##??????????????? | | ####### #?# ####???????###???????????????? | | ## ## #?# ##?????#######???????????????? | | #?# #?????" ###????????????## | | #### #????? #????????????# | | %##?# #??### ##?????????????# | | #??# ##? t #?????????????# | | ##??## ### <#?????????????## | | ##???## @ t #???##?????????# | | #????# # #???# #########? | | # #????### #?? #??# ## ## | | # ## ##??????##### #???? ###??# | | ####???????????# #??????#????## ## | | ## ##???????????### #????####????# ## | | ### ##?????###### ##?#### ##???# ### | | #?# #????## ## #### ##??# ### % | | #### #???## ## #### ## | | #?## #?# ## ## | | ??# ###?# ### !## ###### | | ### ##??# #### ! # ## ## #????# | | # #### #?## ######### ##???# | | #???## ##???????###???# | | # ### #????# ##??????????????# | | ###??## ## ### ##???# ###???????????????## | | ??????########????????## #??????????????????### | | ???????????????????????######????????????????????? | | ?????????????????????????????????????????????????? | | ?????????????????????????????????????????????????? | | ?????????????????????????????????????????????????? | | ?????????????????????????????????????????????????? | | ?????????????????????????????????????????????????? | | ?????????????????????????????????????????????????? | | ?????????????????????????????????????????????????? | +----------------------------------------------------+ Best States ------------- Heat Dissipation 25 Energy Generation 15 Energy Capacity 250 Matter Stores 300 Matter Capacity 300 Sight Range 21 Terrain Scan Density 10 Armor Coverage 800 Evasion (%) 44 Item Schematics ----------------- None Robot Schematics ------------------ None Fabricated ------------ Nothing Repaired ---------- Nothing Alien Tech Used ----------------- None Achievements -------------- None Challenges ------------ None Game ------ Seed OpticalUltimateEdition Manual? 0 Play Time 00:25:21 Cumulative 266.6 hours Start 2025.05.19 @ 23:35:02 End 2025.05.19 @ 23:59:37 Sessions 1 Manual Loads 0 Difficulty Rogue Special Mode None Game No. 123 Rogue 80 Adventurer 43 Explorer 0 Win Type - Total 6 Types 4/0/1/0/0/0/0/1/0/0 Lore% 75 Gallery% 69 Achievement% 64 Wizard Run 0 Options --------- Layout 0 ASCII 0 Keyboard 0 Movement Numpad Keybinds 0 Fullscreen 1 Font 24/Smallcaps Map View 76x50 Zoom Use 0% Tactical HUD 1 Map Filters NONE Filters NONE Steam 1 RUN: 452831cf-55a6-4bb1-b035-e8afb6b4303b